bitfinex/quotes_ETHUSD_20250314
["timestamp","ask_amount","ask_price","bid_price","bid_amount"]
[1741959337702,10.4512,1913.7,1913.3,6.04596]
[1741959337900,10.45229,1913.5,1913.3,0.8194]
[1741959338110,5.22639,1913.4,1913.0,6.04665]
[1741959338774,6.27061,1913.7,1913.0,6.04665]
[1741959338775,10.45335,1913.3,1913.0,0.8194]
[1741959338975,0.522,1913.6,1913.0,0.87166634]
[1741959339175,5.22612,1913.5,1913.0,6.09904634]
[1741959339376,5.22649,1913.4,1913.0,6.04678]
[1741959340007,5.74793,1913.6,1913.2,5.22679]
[1741959340375,5.74704,1913.9,1913.3,0.05226302]
[1741959340575,10.97208,1913.9,1913.4,5.22629]
[1741959340812,10.97208,1913.9,1913.5,6.04676]
[1741959340813,5.22504,1913.9,1913.5,6.04676]
[1741959341014,5.22521,1913.8,1913.5,0.8208]
[1741959341529,5.22472,1914.0,1913.5,6.651387]
[1741959341733,5.74543,1914.5,1913.7,5.22547]
[1741959342030,5.22386,1914.3,1913.9,6.01369]
[1741959342228,5.22472,1914.0,1913.5,5.830717]
[1741959342391,5.22519,1913.9,1913.4,6.01506]
[1741959342591,5.22509,1913.9,1913.5,5.22598]
[1741959342787,5.22509,1913.9,1913.5,5.22593]
[1741959343197,5.22444,1914.1,1913.4,0.7889]
[1741959343393,5.22444,1914.1,1913.6,5.34463675]
[1741959343596,5.22444,1914.1,1913.6,6.28254868]
[1741959343789,5.22476,1914.0,1913.7,0.1189156]
[1741959344333,5.746286,1914.3,1913.7,0.1189156]
[1741959344631,5.22445,1914.1,1913.6,10.50351892]
[1741959344793,5.22445,1914.1,1913.8,0.11869447]
[1741959344997,5.22445,1914.1,1913.7,5.3443756]
[1741959345223,5.22468,1914.0,1913.8,0.11869447]
[1741959345430,5.22493,1913.9,1913.8,0.11869447]
[1741959345616,5.22533,1913.8,1913.4,6.01494]
[1741959345939,5.22474,1914.0,1913.6,5.22563]
[1741959346240,5.22458,1914.1,1913.7,5.27752905]
[1741959346396,5.22414,1914.2,1913.9,6.00896]
[1741959346600,5.22393,1914.3,1913.9,6.00896]
[1741959346927,5.22359,1914.4,1914.0,10.56730228]
[1741959347132,5.22329,1914.5,1914.0,0.11825228]
[1741959347426,5.22438,1914.1,1914.0,0.11825228]
[1741959347929,5.22339,1914.5,1914.1,5.98238]
[1741959348100,5.22302,1914.6,1914.1,0.7581]
[1741959348333,5.22411,1914.2,1914.1,0.7581]
[1741959348662,5.22481,1914.0,1913.8,0.7581]
[1741959349156,5.22493,1913.9,1913.8,0.7581]
[1741959349454,5.22493,1913.9,1913.7,6.147]
[1741959349760,5.22471,1914.0,1913.7,6.147]
[1741959350055,5.22405,1914.3,1913.7,7.41476021]
[1741959350256,10.44812,1914.3,1913.9,5.22492]
[1741959350458,5.22427,1914.2,1913.7,12.587903]
[1741959350658,5.22466,1914.0,1913.7,7.362513]
[1741959350958,5.22466,1914.0,1913.7,6.147]
[1741959351255,5.22466,1914.0,1913.6,6.00803]
[1741959351256,5.22547,1913.7,1913.6,0.7825]
[1741959351454,5.22525,1913.8,1913.6,0.7825]
[1741959351658,5.22501,1913.9,1913.6,0.7825]
[1741959351826,5.22384,1914.3,1913.8,5.22505]
[1741959352022,5.22421,1914.2,1913.9,0.05224396]
[1741959352261,5.22498,1913.9,1913.6,0.7825]
[1741959352564,5.22504,1913.9,1913.6,0.7825]
[1741959352760,5.22534,1913.8,1913.6,0.7825]
[1741959353062,5.22514,1913.9,1913.6,0.7825]
[1741959353224,5.74562,1914.4,1913.7,5.22543]
[1741959353558,5.22357,1914.4,1914.0,5.22445]
[1741959353973,5.22331,1914.5,1914.1,6.02921516]
[1741959354131,5.22331,1914.5,1914.2,5.22411]
[1741959354455,5.22331,1914.5,1914.1,5.97698]
[1741959354663,5.2237,1914.4,1914.1,0.7528]
[1741959354820,0.522,1915.3,1914.1,1.872994]
[1741959355158,5.22165,1915.1,1914.3,5.22381]
[1741959355361,5.22257,1914.8,1914.4,5.22351]
[1741959355669,5.22302,1914.6,1914.3,5.22381]
[1741959355963,5.22394,1914.3,1913.8,6.9449]
[1741959356159,5.2236,1914.4,1914.0,5.22458]
[1741959356361,5.22403,1914.3,1913.9,5.22491]
[1741959356547,0.522,1914.8,1913.8,6.9449]
[1741959356548,5.22275,1914.7,1913.8,6.9449]
[1741959356751,5.22448,1914.1,1913.8,0.8329]
[1741959357064,5.74558,1914.4,1913.9,5.22469]
[1741959357236,5.22426,1914.2,1913.8,6.05801]
[1741959357441,5.22467,1914.0,1913.6,5.22573]
[1741959357767,5.22459,1914.1,1913.7,5.22542]
[1741959357966,5.7457,1914.4,1913.5,6.01969]
[1741959357967,0.522,1914.4,1913.5,6.01969]
[1741959358127,5.22522,1913.8,1913.5,0.7937]
[1741959358335,5.22575,1913.6,1913.2,6.05242]
[1741959358677,5.22628,1913.5,1913.2,0.8258]
[1741959359164,5.22628,1913.5,1913.0,6.354613]
[1741959359165,5.22641,1913.4,1913.0,6.354613]
[1741959359530,5.22626,1913.5,1913.0,6.354613]
[1741959359729,5.2265,1913.4,1913.0,6.354713]
[1741959359930,5.2265,1913.4,1913.0,6.354553]
[1741959360155,10.4522,1913.5,1913.1,5.22701]
[1741959360357,5.22603,1913.5,1913.0,6.354673]
[1741959360684,5.22603,1913.5,1913.1,5.22697]
[1741959360862,5.22483,1914.0,1913.2,0.8318]
[1741959361034,0.522,1914.2,1913.6,0.8318]
[1741959361374,0.522,1914.2,1913.7,5.22533]
[1741959361532,5.22496,1913.9,1913.6,0.8318]
[1741959361734,5.22496,1913.9,1913.6,1.43758]
[1741959362059,0.522,1914.2,1913.6,0.8318]
[1741959362375,5.22605,1913.5,1913.1,7.1843893]
[1741959362539,5.22524,1913.8,1913.4,5.22625]
[1741959362874,3.522,1914.2,1913.6,0.7992]
[1741959363059,5.22449,1914.1,1913.6,6.02473]
[1741959363238,5.22449,1914.1,1913.6,0.7992]
[1741959363470,5.22466,1914.0,1913.6,6.02486]
[1741959363709,5.22456,1914.1,1913.7,5.2777228]
[1741959363914,5.22456,1914.1,1913.7,5.22547]
[1741959364214,5.22456,1914.1,1913.6,6.02481]
[1741959364215,5.22478,1914.0,1913.6,6.02481]
[1741959364407,5.22496,1913.9,1913.6,0.7992]
[1741959364783,5.2252,1913.8,1913.6,0.7992]
[1741959364985,5.22547,1913.7,1913.4,11.31029]
[1741959365197,5.2247,1914.0,1913.3,0.7797]
[1741959365392,0.52247,1913.9,1913.3,0.7797]
[1741959365619,5.22585,1913.6,1913.3,6.00622]
[1741959365907,5.22521,1913.8,1913.5,5.22601]
[1741959366111,10.45117,1913.7,1913.3,6.00623]
[1741959366311,5.2259,1913.6,1913.3,0.7797]
[1741959366503,5.2259,1913.6,1913.3,6.05847865]
[1741959366804,5.22565,1913.7,1913.3,6.05851867]
[1741959367125,1.045095,1913.7,1913.3,0.7797]
[1741959367331,5.22529,1913.8,1913.1,5.22711]
[1741959367474,5.22529,1913.8,1913.4,5.22611]
[1741959368084,11.82386,1914.0,1913.5,0.0522568]
[1741959368300,11.82386,1914.0,1913.6,5.22554]
[1741959368301,5.22486,1914.0,1913.6,5.22554]
[1741959368497,0.522,1914.2,1913.6,1.12780068]
[1741959368698,5.22438,1914.1,1913.5,0.7742]
[1741959368910,5.2254,1913.8,1913.4,5.22627]
[1741959369091,5.22553,1913.7,1913.3,5.22646]
[1741959369285,5.2251,1913.9,1913.3,0.598246]
[1741959369508,5.22503,1913.9,1913.5,5.22593]
[1741959369812,10.44971,1914.0,1913.6,5.2257]
[1741959370180,5.22483,1914.0,1913.6,5.2257]
[1741959370383,10.44969,1914.0,1913.6,5.2257]
[1741959370577,8.74633,1914.2,1913.3,0.55]
[1741959370929,5.22453,1914.1,1913.7,5.22539]
[1741959371139,5.22453,1914.1,1913.7,10.45072]
[1741959371431,5.22453,1914.1,1913.7,6.270402]
[1741959371617,13.44853,1914.2,1913.8,5.22515]
[1741959371822,5.22439,1914.1,1913.7,5.22533]
[1741959372017,5.22466,1914.0,1913.6,5.22566]
[1741959372426,8.22423,1914.2,1913.5,0.8131]
[1741959372629,0.522,1913.9,1913.2,0.7847]
[1741959372816,5.22641,1913.4,1913.0,5.22728]
[1741959373140,5.22584,1913.6,1913.2,5.22659]
[1741959373433,5.22617,1913.5,1913.3,0.10198362]
[1741959373633,5.22572,1913.7,1913.3,0.10198362]
[1741959373834,5.22595,1913.6,1913.1,5.22696]
[1741959374025,5.22575,1913.6,1912.9,5.22756]
[1741959374337,5.22738,1913.1,1912.7,5.22807]
[1741959374652,5.22766,1912.9,1912.8,0.09603016]
[1741959374846,5.74966,1912.9,1912.8,0.09603016]
[1741959375033,5.74966,1912.9,1912.5,5.22868]
[1741959375337,5.74913,1913.1,1912.5,6.27961846]
[1741959375538,5.74913,1913.1,1912.6,10.54999676]
[1741959375740,5.22713,1913.1,1912.7,5.22799]
[1741959376042,5.22713,1913.1,1912.8,0.09293402]
[1741959376043,5.22749,1913.0,1912.8,0.09293402]
[1741959376208,5.22713,1913.1,1912.8,0.09293402]
[1741959376542,6.566,1913.4,1913.0,5.22739]
[1741959376543,0.522,1913.4,1913.0,5.22739]
[1741959376700,5.22589,1913.6,1913.1,5.37141852]
[1741959376904,5.22643,1913.4,1913.1,0.09227007]
[1741959377104,5.22643,1913.4,1913.0,5.22731]
[1741959377399,5.2261,1913.5,1913.1,0.09227007]
[1741959377743,5.22671,1913.3,1912.9,5.22763]
[1741959377938,5.2262,1913.5,1913.0,5.371919]
[1741959378243,5.22664,1913.3,1913.0,0.09249136]
[1741959378492,5.22708,1913.2,1913.0,0.09249136]
[1741959378792,5.22708,1913.2,1912.2,6.039]
[1741959378793,5.74911,1913.1,1912.6,5.2283]
[1741959378987,5.22757,1913.0,1912.5,5.22855]
[1741959379160,5.22757,1913.0,1912.6,5.22839]
[1741959379367,5.22772,1912.9,1912.7,0.09029105]
[1741959379603,5.22772,1912.9,1912.5,10.45714]
[1741959379770,5.22772,1912.9,1912.8,0.09006969]
[1741959379954,0.522,1913.1,1912.5,5.22855]
[1741959380157,6.624026,1913.1,1912.6,0.09082056]
[1741959380384,5.22789,1912.9,1912.4,5.22894]
[1741959380576,5.22795,1912.8,1912.7,0.09059918]
[1741959380774,5.22795,1912.8,1912.4,5.22894]
[1741959381056,5.22795,1912.8,1912.7,0.09059918]
[1741959381567,5.22795,1912.8,1912.3,6.05143]
[1741959381790,5.22795,1912.8,1912.4,5.32031951]
[1741959381960,5.22767,1912.9,1912.4,5.32024951]
[1741959382163,3.0,1912.9,1912.6,5.22847]
[1741959382369,6.624176,1913.1,1912.7,0.09072529]
[1741959382565,0.522,1913.1,1912.7,5.28048143]
[1741959382797,5.22664,1913.3,1912.8,6.13432393]
[1741959382798,3.0,1913.2,1912.8,6.13432393]
[1741959383008,5.74836,1913.4,1913.0,5.22734]
[1741959383167,6.014,1913.5,1912.9,0.05227138]
[1741959383368,5.7479,1913.6,1913.2,5.22683]
[1741959383571,5.7479,1913.6,1913.3,0.08929471]
[1741959383883,5.22621,1913.5,1913.3,0.08929471]
[1741959384078,5.22582,1913.6,1913.3,0.08929471]
[1741959384398,5.22556,1913.7,1913.3,5.31576471]
[1741959384597,5.22548,1913.7,1913.3,6.11176471]
[1741959384903,5.74699,1913.9,1913.5,5.22601]
[1741959385108,5.74699,1913.9,1913.6,5.2257]
[1741959385304,5.22485,1914.0,1913.6,5.2257]
[1741959385305,6.046843,1914.1,1913.6,5.3142284]
[1741959385608,5.22547,1913.7,1913.6,0.0885984]
[1741959385963,10.4507,1913.8,1913.4,5.22626]
[1741959386169,6.536,1914.2,1913.5,5.31435957]
[1741959386170,5.22492,1914.0,1913.5,5.31435957]
[1741959386370,5.22492,1914.0,1913.6,5.22569]
[1741959386596,5.22494,1913.9,1913.7,0.08807725]
[1741959386794,5.2252,1913.8,1913.7,0.08807725]
[1741959387001,5.22503,1913.9,1913.5,5.22584]
[1741959387206,5.2252,1913.8,1913.7,0.08807725]
[1741959387506,5.2252,1913.8,1913.6,0.0882984]
[1741959387668,6.26972,1913.8,1913.7,0.08807725]
[1741959387866,5.2252,1913.8,1913.7,0.08807725]
[1741959388072,5.2252,1913.8,1913.4,5.22619]
[1741959388271,5.74671,1914.0,1913.3,5.22657]
[1741959388609,5.22523,1913.8,1913.5,5.22601]
[1741959389008,5.22523,1913.8,1913.6,0.08817703]
[1741959389508,5.22493,1913.9,1913.6,5.31389703]
[1741959389715,5.22493,1913.9,1913.6,0.08817703]
[1741959390285,10.45006,1913.9,1913.6,0.08817703]
[1741959390963,5.22493,1913.9,1913.6,0.08817703]
[1741959391226,8.22477,1914.0,1913.6,1.44878273]
[1741959391539,8.22477,1914.0,1913.6,6.67444273]
[1741959391694,8.22433,1914.2,1913.8,5.2252]
[1741959391899,5.22442,1914.1,1913.9,0.08751365]
[1741959392100,5.22442,1914.1,1913.8,5.2252]
[1741959392387,10.44907,1914.1,1913.7,5.22542]
[1741959392583,5.22442,1914.1,1913.7,6.40658057]
[1741959392779,5.22442,1914.1,1913.7,6.40652057]
[1741959393225,5.22438,1914.1,1913.8,0.08773475]
[1741959393729,5.22467,1914.0,1913.8,0.08773475]
[1741959394089,5.22438,1914.1,1913.7,5.22547]
[1741959394294,5.22438,1914.1,1913.8,0.08773475]
[1741959394520,10.44889,1914.1,1913.8,0.08773475]
[1741959394720,8.22414,1914.2,1913.8,5.31270475]
[1741959394931,0.522,1914.5,1913.8,1.19379708]
[1741959395102,6.542,1914.8,1914.1,6.04728]
[1741959395303,5.22302,1914.6,1914.2,5.22389]
[1741959395510,5.22296,1914.7,1914.3,5.22373]
[1741959395705,5.22296,1914.7,1914.4,0.08608176]
[1741959395892,0.522,1914.8,1914.4,5.27559237]
[1741959396099,5.22275,1914.7,1914.5,0.08586079]
[1741959396318,5.74394,1915.0,1914.6,5.22289]
[1741959396638,5.74394,1915.0,1914.7,0.08541892]
[1741959396639,5.22236,1914.9,1914.7,0.08541892]
[1741959396999,5.22236,1914.9,1914.5,5.22326]
[1741959397200,5.22236,1914.9,1914.8,0.08519802]
[1741959397530,3.0,1914.6,1913.7,5.22527]
[1741959397734,3.0,1914.7,1914.0,5.22451]
[1741959397907,5.22427,1914.2,1914.1,0.0773734]
[1741959401013,5.22445,1914.1,1913.9,0.07781554]
[1741959401218,5.22445,1914.1,1914.0,0.07759446]
[1741959401541,5.22445,1914.1,1913.8,5.22511]
[1741959401753,3.0,1914.5,1913.9,0.07781554]
[1741959402038,5.22361,1914.4,1914.0,5.22462]
[1741959402243,8.2233,1914.5,1914.1,5.22428]
[1741959402427,13.4468,1914.5,1914.1,5.3016534]
[1741959402619,8.2233,1914.5,1914.1,5.3016534]
[1741959402815,5.2233,1914.5,1914.1,5.3016434]
[1741959403020,11.24305,1914.6,1914.2,6.02226]
[1741959403230,5.22305,1914.6,1914.2,6.02226]
[1741959403430,0.522,1914.8,1914.4,5.22342]
[1741959403649,0.522,1914.8,1914.3,0.12916653]
[1741959403650,5.22284,1914.7,1914.3,5.35287653]
[1741959403844,5.22284,1914.7,1914.5,0.07648939]
[1741959404053,5.22314,1914.6,1914.4,0.07671035]
[1741959404264,5.22314,1914.6,1914.2,6.02222]
[1741959404865,5.22314,1914.6,1914.2,7.146878]
[1741959405160,5.22314,1914.6,1914.3,5.22376]
[1741959405352,5.22314,1914.6,1914.2,7.146878]
[1741959405730,5.22304,1914.6,1914.3,5.22379]
[1741959406270,5.22278,1914.7,1914.3,5.22379]
[1741959406431,10.44571,1914.7,1914.3,6.4608568]
[1741959406642,5.22278,1914.7,1914.3,11.6845668]
[1741959406965,10.44571,1914.7,1914.3,6.4607768]
[1741959407138,5.22278,1914.7,1914.3,6.4607768]
[1741959407339,5.22278,1914.7,1914.3,11.6844568]
[1741959407729,5.22278,1914.7,1914.4,5.22356]
[1741959407926,5.22278,1914.7,1914.3,6.4607468]
[1741959408444,5.74451,1914.8,1914.4,5.22347]
[1741959408675,5.74451,1914.8,1914.4,5.27570098]
[1741959408874,3.0,1914.9,1914.4,0.05223098]
[1741959409048,3.522,1915.0,1914.8,5.22244]
[1741959409389,8.22197,1915.0,1914.6,5.22291]
[1741959409890,5.22233,1914.9,1914.6,5.22291]
[1741959410392,13.44414,1915.0,1914.6,10.44571]
[1741959410696,5.2222,1914.9,1914.6,5.2228]
[1741959411857,5.22288,1914.7,1914.4,6.09]
[1741959412061,5.22396,1914.3,1913.9,6.9232]
[1741959412304,5.22359,1914.4,1913.9,0.8332]
[1741959412592,5.22304,1914.6,1914.1,5.22435]
[1741959412796,5.2234,1914.5,1914.0,10.44912]
[1741959412977,5.22366,1914.4,1914.0,5.2245]
[1741959413161,5.22306,1914.6,1913.9,0.8332]
[1741959413363,5.22306,1914.6,1914.2,10.44798]
[1741959413554,10.44629,1914.6,1914.2,5.22397]
[1741959413759,5.22332,1914.5,1914.2,5.22397]
[1741959413973,5.22306,1914.6,1914.2,6.268801]
[1741959414172,5.22342,1914.5,1914.2,1.044831]
[1741959414787,5.22359,1914.4,1914.2,1.044831]
[1741959415087,5.22385,1914.3,1914.0,5.22456]
[1741959415293,5.22302,1914.6,1913.9,0.8332]
[1741959415590,5.22425,1914.2,1913.9,0.8332]
[1741959415755,5.22387,1914.3,1913.9,6.058]
[1741959416139,5.74669,1914.0,1913.3,5.22647]
[1741959416303,5.64656715,1914.0,1913.3,5.22647]
[1741959416506,5.22576,1913.6,1913.2,6.02062]
[1741959416993,5.2256,1913.7,1913.2,6.02063]
[1741959417194,5.22497,1913.9,1913.2,0.7938]
[1741959417394,0.522,1914.0,1913.3,5.22657]
[1741959417609,5.2244,1914.1,1913.7,5.22535]
[1741959417805,5.22467,1914.0,1913.6,5.22572]
[1741959417995,5.22499,1913.9,1913.6,5.22572]
[1741959418221,5.2247,1914.0,1913.6,5.22548]
[1741959418413,5.2244,1914.1,1913.7,0.06714007]
[1741959418736,5.2244,1914.1,1913.8,5.22519]
[1741959418937,5.2244,1914.1,1913.6,0.05224924]
[1741959418938,5.2244,1914.1,1913.6,5.22559]
[1741959419230,5.2244,1914.1,1913.7,5.747909]
[1741959419416,5.2244,1914.1,1913.7,0.58969907]
[1741959419622,5.2248,1914.0,1913.7,0.06714007]
[1741959420232,10.44967,1914.0,1913.7,0.06714007]
[1741959420438,0.522,1914.0,1913.7,0.06714007]
[1741959420746,5.22461,1914.1,1913.7,5.22521]
[1741959420747,8.22457,1914.1,1913.7,5.22521]
[1741959421045,3.0,1914.1,1913.8,5.29194894]
[1741959421248,8.22396,1914.3,1913.9,5.75393489]
[1741959421407,5.2249,1914.0,1913.8,0.06691894]
[1741959421612,5.2249,1914.0,1913.4,5.22628]
[1741959421613,5.22466,1914.0,1913.4,5.22628]
[1741959421840,5.22535,1913.8,1913.4,10.45248]
[1741959422046,5.22575,1913.6,1913.3,0.7554]
[1741959424449,5.22321,1914.6,1914.2,5.224]
[1741959424960,0.522,1914.8,1914.0,5.22442]
[1741959425253,5.22235,1914.9,1914.4,5.22341]
[1741959425441,5.22235,1914.9,1914.3,0.55]
[1741959425442,5.22196,1915.0,1914.6,5.22293]
[1741959426156,5.22223,1914.9,1914.5,5.22315]
[1741959426354,5.22223,1914.9,1914.5,5.745465]
[1741959426524,5.22196,1915.0,1914.5,0.522315]
[1741959426724,10.44415,1915.0,1914.5,5.2231]
[1741959426927,5.22196,1915.0,1914.5,5.2231]
[1741959427160,5.22232,1914.9,1914.5,5.2231]
[1741959427530,5.22248,1914.8,1914.5,5.2231]
[1741959427731,5.22288,1914.7,1914.3,5.2238]
[1741959427931,11.48256715,1914.8,1913.9,0.7592]
[1741959428150,6.358,1914.8,1913.9,5.98405]
[1741959428352,11.05849,1914.8,1914.4,5.22337]
[1741959428573,5.22288,1914.7,1914.3,5.98302]
[1741959428761,10.44582,1914.7,1914.4,0.598302]
[1741959429127,5.22308,1914.6,1914.4,0.598302]
[1741959429327,5.22308,1914.6,1914.3,5.98302]
[1741959429532,5.22288,1914.7,1914.3,5.98302]
[1741959430264,5.22288,1914.7,1914.3,0.7592]
[1741959430446,5.22315,1914.6,1914.3,0.7592]
[1741959430761,5.22288,1914.7,1914.3,6.581166]
[1741959430963,5.74401,1915.0,1914.6,5.2229]
[1741959431260,5.22236,1914.9,1914.5,5.22322]
[1741959431428,10.44475,1914.9,1914.5,5.22322]
[1741959431632,10.44475,1914.9,1914.5,5.22309]
[1741959431633,5.22236,1914.9,1914.5,5.22309]
[1741959431824,3.0,1915.1,1914.7,5.22251]
[1741959432167,5.22231,1914.9,1914.6,0.522309]
[1741959433031,5.22231,1914.9,1914.6,5.745299]
[1741959433255,5.22231,1914.9,1914.7,0.06427644]
[1741959433974,5.22211,1915.0,1914.7,0.06427644]
[1741959434138,6.542,1915.2,1914.7,0.67027508]
[1741959434461,5.22157,1915.2,1914.8,5.22224]
[1741959434760,5.841,1915.4,1914.7,5.28701644]
[1741959434761,5.22194,1915.0,1914.7,5.28701644]
[1741959434969,5.2222,1914.9,1914.8,0.06405554]
[1741959435172,0.522,1915.1,1914.4,11.31336]
[1741959435347,0.522,1915.1,1914.5,0.11694453]
[1741959435348,5.22203,1915.0,1914.5,0.11694453]
[1741959435552,5.2218,1915.1,1914.6,5.99556]
[1741959435871,5.2218,1915.1,1914.7,5.28702644]
[1741959436070,8.2214,1915.2,1914.7,5.28689644]
[1741959436242,5.22195,1915.0,1914.7,0.06427644]
[1741959436442,5.22195,1915.0,1914.7,5.28689644]
[1741959436443,5.22198,1915.0,1914.7,5.28689644]
[1741959436861,8.2214,1915.2,1914.7,0.06427644]
[1741959437170,5.22238,1914.9,1914.5,5.22317]
[1741959437378,5.22238,1914.9,1914.6,5.28742736]
[1741959437683,5.22207,1915.0,1914.6,1.1155571]
[1741959437835,5.22234,1914.9,1914.6,0.06449736]
[1741959438041,5.22249,1914.8,1914.6,0.06449736]
[1741959438535,10.4452,1914.8,1914.7,0.06417454]
[1741959438739,10.4452,1914.8,1914.4,13.19513345]
[1741959439052,10.4452,1914.8,1914.5,0.06461641]
[1741959439254,5.22302,1914.6,1914.5,0.06461641]
[1741959439583,5.22302,1914.6,1914.5,0.07052774]
[1741959439584,25.73958715,1914.6,1914.5,0.07052774]
[1741959439870,5.22419,1914.2,1913.8,5.98868]
[1741959440080,5.22385,1914.3,1913.9,5.22491]
[1741959440289,5.22337,1914.5,1914.0,5.27675236]
[1741959440465,5.22366,1914.4,1913.9,6.43210677]
[1741959440643,8.22337,1914.5,1914.1,0.08000423]
[1741959440837,8.22337,1914.5,1914.1,10.44835]
[1741959441042,17.09306,1914.6,1914.3,0.7602]
[1741959441236,5.85,1914.6,1914.3,0.7602]
[1741959441464,5.2234,1914.5,1914.4,0.07925109]
[1741959441876,5.22303,1914.6,1914.3,0.7602]
[1741959442045,5.22303,1914.6,1914.4,0.07925109]
[1741959442386,5.22303,1914.6,1914.3,0.7602]
[1741959442576,5.22303,1914.6,1914.4,0.07923163]
[1741959442760,5.22303,1914.6,1914.3,0.7602]
[1741959442946,5.22303,1914.6,1914.4,0.07923163]
[1741959443147,8.22254,1914.8,1914.4,5.22354]
[1741959443346,0.522,1915.1,1914.7,5.22265]
[1741959443347,5.74377,1915.1,1914.7,5.22265]
[1741959443547,5.22202,1915.0,1914.8,0.07792954]
[1741959443788,5.22177,1915.1,1914.7,6.03496]
[1741959443941,5.22193,1915.0,1914.8,0.07782577]
[1741959444144,5.2222,1914.9,1914.8,0.07782577]
[1741959444347,5.2222,1914.9,1914.4,6.688374]
[1741959444348,5.22294,1914.7,1914.4,6.09]
[1741959444562,5.22313,1914.6,1914.5,0.07875365]
[1741959444788,5.2233,1914.5,1914.2,5.22388]
[1741959444950,5.2233,1914.5,1914.3,0.07937239]
[1741959445456,10.44633,1914.6,1914.3,0.07937239]
[1741959445794,5.22356,1914.4,1914.3,0.07937239]
[1741959446122,5.22356,1914.4,1914.1,6.9023]
[1741959446123,5.22278,1914.7,1914.1,6.95453763]
[1741959446248,5.22231,1914.9,1914.4,0.7908]
[1741959446449,5.22231,1914.9,1914.5,10.49845634]
[1741959446649,10.44354,1915.1,1914.7,5.22258]
[1741959446888,5.74341,1915.2,1914.7,5.22254]
[1741959447054,5.22115,1915.3,1915.0,5.2219]
[1741959447257,5.2215,1915.2,1914.8,5.30024063]
[1741959447464,5.22113,1915.3,1915.1,0.84109292]
[1741959447682,5.22113,1915.3,1915.1,0.7679]
[1741959447866,5.22113,1915.3,1915.2,0.07288379]
[1741959448287,5.22143,1915.2,1914.9,0.7679]
[1741959448470,0.522,1915.1,1914.9,1.121264]
[1741959448672,5.22204,1915.0,1914.6,5.27512433]
[1741959448903,5.22168,1915.1,1914.7,5.22255]
[1741959449082,5.22168,1915.1,1914.7,10.44514]
[1741959449404,3.522,1915.3,1914.8,5.22225]
[1741959449607,5.22158,1915.2,1914.8,5.744475]
[1741959449779,5.22165,1915.1,1914.8,0.522225]
[1741959450188,0.522,1915.3,1914.6,5.99078]
[1741959450189,5.22204,1915.0,1914.6,5.99078]
[1741959450526,5.22296,1914.7,1914.4,0.8169]
[1741959450813,5.22344,1914.5,1914.2,0.8169]
[1741959450973,5.2231,1914.6,1914.2,0.8169]
[1741959451316,5.22316,1914.6,1914.2,7.253892]
[1741959451615,5.22226,1914.9,1914.6,5.22277]
[1741959451774,5.22219,1915.0,1914.6,5.22277]
[1741959451974,5.22222,1914.9,1914.5,10.44637]
[1741959452174,10.4446,1914.9,1914.5,5.2231]
[1741959452510,5.22222,1914.9,1914.5,5.2231]
[1741959452718,5.22258,1914.8,1914.5,5.2231]
[1741959452915,5.22258,1914.8,1914.5,6.876763]
[1741959453209,5.22222,1914.9,1914.5,6.876763]
[1741959453411,10.96507,1915.2,1914.8,5.22222]
[1741959453675,10.96507,1915.2,1914.7,5.22275]
[1741959453676,5.22145,1915.2,1914.7,5.22275]
[1741959453819,5.22176,1915.1,1914.7,6.43898724]
[1741959454024,5.22147,1915.2,1914.8,5.22246]
[1741959454223,5.22136,1915.3,1914.9,5.22203]
[1741959454379,5.22139,1915.2,1914.8,5.22246]
[1741959454721,5.22087,1915.4,1914.9,5.22205]
[1741959454921,5.74235,1915.6,1914.8,6.73386972]
[1741959455082,5.2211,1915.4,1914.9,6.0105]
[1741959455284,3.0,1915.6,1915.0,5.22181]
[1741959455510,5.22067,1915.5,1915.1,5.22153]
[1741959456127,5.22085,1915.4,1915.0,10.44365]
[1741959456417,5.22085,1915.4,1915.0,10.44356]
[1741959456718,5.22127,1915.3,1914.9,6.01038]
[1741959456908,5.22127,1915.3,1915.0,5.22193]
[1741959457218,5.22127,1915.3,1914.9,6.01038]
[1741959457396,5.22141,1915.2,1914.9,6.01038]
[1741959457587,5.22157,1915.2,1914.9,0.7883]
[1741959457778,5.22181,1915.1,1914.8,6.09]
[1741959457984,5.2221,1915.0,1914.4,0.7874]
[1741959458185,5.22316,1914.6,1914.2,7.224582]
[1741959458425,5.22424,1914.2,1914.0,0.7874]
[1741959458607,5.22358,1914.4,1913.7,6.01285]
[1741959458809,5.22448,1914.1,1913.7,6.0127]
[1741959459087,5.22448,1914.1,1913.8,5.22516]
[1741959459400,5.22448,1914.1,1913.8,6.348946]
[1741959460109,11.66656715,1914.6,1913.8,1.123786]
[1741959460328,3.0,1914.7,1914.3,5.22372]
[1741959460329,8.22287,1914.7,1914.3,5.22372]
[1741959460497,5.22304,1914.6,1914.2,5.22406]
[1741959460700,5.22287,1914.7,1914.3,5.22371]
[1741959460910,10.44524,1914.8,1914.4,5.22355]
[1741959461128,5.22285,1914.7,1914.3,5.22381]
[1741959461324,10.44582,1914.7,1914.3,5.22381]
[1741959461506,5.22305,1914.6,1914.2,5.22393]
[1741959461908,5.2233,1914.5,1914.1,5.22438]
[1741959462133,5.22329,1914.5,1913.7,0.8311]
[1741959462322,5.22399,1914.3,1913.9,5.22479]
[1741959462526,5.22399,1914.3,1913.7,1.49271]
[1741959462527,5.22435,1914.2,1913.8,5.22518]
[1741959462711,5.2245,1914.1,1913.7,6.7181]
[1741959462916,5.2245,1914.1,1913.7,6.71818]